bitfinex/quotes_BTCUSD_20250105
["timestamp","ask_amount","ask_price","bid_price","bid_amount"]
[1736086682037,0.184718,97446.0,97422.0,0.005676]
[1736086682242,0.009,97439.0,97422.0,0.005676]
[1736086682445,0.193731,97439.0,97422.0,0.005676]
[1736086682903,0.193731,97439.0,97422.0,0.190439]
[1736086683109,0.184731,97439.0,97423.0,0.0423813]
[1736086683320,0.184732,97438.0,97421.0,0.0476]
[1736086683545,0.1,97443.0,97421.0,0.0476]
[1736086683752,0.15,97426.0,97422.0,0.00916]
[1736086683979,0.15,97426.0,97423.0,0.00916]
[1736086684193,0.184757,97425.0,97424.0,0.00916]
[1736086684404,0.184759,97424.0,97420.0,0.05752]
[1736086684610,0.15,97426.0,97421.0,0.01016]
[1736086684813,0.15,97432.0,97421.0,0.01016]
[1736086685024,0.334745,97432.0,97421.0,0.01016]
[1736086685262,0.15,97438.0,97421.0,0.00916]
[1736086685479,0.005,97426.0,97422.0,0.006668]
[1736086686122,0.005,97426.0,97421.0,0.01016]
[1736086686341,0.006,97432.0,97421.0,0.00916]
[1736086686545,0.006,97432.0,97422.0,0.184763]
[1736086686779,0.006,97432.0,97431.0,1.5]
[1736086687483,0.007,97432.0,97431.0,1.5]
[1736086687899,0.007,97432.0,97431.0,1.50916]
[1736086688129,0.006,97432.0,97431.0,1.50916]
[1736086688337,0.184706,97452.0,97431.0,1.58736]
[1736086688540,0.0022533,97445.0,97432.0,0.10398632]
[1736086688745,0.184706,97452.0,97433.0,0.049]
[1736086688953,0.369412,97452.0,97450.0,1.5]
[1736086689157,0.00225838,97451.0,97450.0,1.5]
[1736086689367,0.00225838,97451.0,97450.0,1.60398632]
[1736086690183,0.00225838,97451.0,97450.0,1.60405232]
[1736086690516,0.00225838,97451.0,97450.0,1.500066]
[1736086690918,0.009,97452.0,97450.0,1.500066]
[1736086691147,0.009,97452.0,97451.0,0.00916]
[1736086691356,0.184701,97455.0,97451.0,0.00916]
[1736086691557,0.184701,97455.0,97454.0,1.5]
[1736086691791,0.15,97460.0,97454.0,1.5]
[1736086691987,0.15,97460.0,97451.0,0.00916]
[1736086692311,0.0067438,97455.0,97451.0,0.00916]
[1736086692664,0.0067438,97455.0,97452.0,0.00916]
[1736086692872,0.0077438,97455.0,97452.0,0.00916]
[1736086693364,0.0067438,97455.0,97452.0,0.00916]
[1736086693566,0.0067438,97455.0,97453.0,0.0193941]
[1736086693792,0.184683,97465.0,97452.0,0.00916]
[1736086693998,0.0001708,97455.0,97452.0,0.00916]
[1736086694596,0.0001708,97455.0,97452.0,0.01416]
[1736086694979,0.0001708,97455.0,97452.0,0.00916]
[1736086695416,0.0021708,97455.0,97453.0,0.184704]
[1736086695664,0.0001708,97455.0,97454.0,0.0378645]
[1736086695849,0.0001708,97455.0,97453.0,0.184704]
[1736086696065,0.0021708,97455.0,97453.0,0.184704]
[1736086696597,0.0021708,97455.0,97453.0,0.28869032]
[1736086696859,0.0021708,97455.0,97454.0,1.5]
[1736086696992,0.0021708,97455.0,97450.0,6.6e-05]
[1736086697213,0.184702,97454.0,97451.0,0.00916]
[1736086697408,0.334706,97452.0,97451.0,0.00916]
[1736086697614,0.15,97451.0,97450.0,6.6e-05]
[1736086697883,0.15,97451.0,97450.0,0.009226]
[1736086698292,0.15,97451.0,97450.0,0.012226]
[1736086698499,0.01887124,97451.0,97450.0,0.012226]
[1736086698905,0.01887124,97451.0,97450.0,0.009226]
[1736086699125,0.008,97451.0,97450.0,1.510226]
[1736086699498,0.0001708,97455.0,97450.0,1.509226]
[1736086699709,0.0001708,97455.0,97451.0,0.10398632]
[1736086699907,0.0001708,97455.0,97450.0,0.010226]
[1736086700112,0.0001708,97455.0,97454.0,1.5]
[1736086701306,0.0001708,97455.0,97454.0,1.502]
[1736086702012,0.0001708,97455.0,97454.0,1.5]
[1736086702390,0.0011708,97455.0,97454.0,1.503]
[1736086702608,0.0011708,97455.0,97454.0,1.60698632]
[1736086703672,0.0011708,97455.0,97454.0,1.68258632]
[1736086704122,0.0011708,97455.0,97454.0,1.80957264]
[1736086704770,0.0011708,97455.0,97454.0,1.90957264]
[1736086704910,0.0011708,97455.0,97454.0,1.80957264]
[1736086705149,0.0001708,97455.0,97454.0,1.80957264]
[1736086705381,0.0001708,97455.0,97454.0,1.80657264]
[1736086705596,0.0021708,97455.0,97454.0,1.92057264]
[1736086705782,0.0011708,97455.0,97454.0,1.81157264]
[1736086705986,0.0011708,97455.0,97454.0,1.91157264]
[1736086706233,0.0021708,97455.0,97454.0,1.82057264]
[1736086706843,0.0011708,97455.0,97454.0,1.81157264]
[1736086707051,0.0001708,97455.0,97454.0,1.80657264]
[1736086707453,0.0011708,97455.0,97454.0,1.81357264]
[1736086708079,0.0001708,97455.0,97454.0,1.80657264]
[1736086708283,0.0011708,97455.0,97454.0,1.81557264]
[1736086708485,0.0021708,97455.0,97454.0,1.82257264]
[1736086708745,0.0011708,97455.0,97454.0,1.81357264]
[1736086709064,0.0011708,97455.0,97454.0,1.81557264]
[1736086709503,0.0001708,97455.0,97454.0,1.80657264]
[1736086709699,0.0011708,97455.0,97454.0,1.81557264]
[1736086710083,0.0001708,97455.0,97454.0,1.80657264]
[1736086710516,0.0011708,97455.0,97454.0,1.81357264]
[1736086710729,0.0011708,97455.0,97454.0,1.5826]
[1736086710919,0.0011708,97455.0,97454.0,1.51588]
[1736086711351,0.00924438,97455.0,97454.0,1.50888]
[1736086711550,0.00924438,97455.0,97454.0,1.51588]
[1736086711748,0.0291662,97455.0,97454.0,1.507]
[1736086711988,0.0291662,97455.0,97454.0,1.51588]
[1736086712180,0.0291662,97455.0,97454.0,1.51788]
[1736086712390,0.0291662,97455.0,97454.0,1.50888]
[1736086712600,0.15924438,97455.0,97454.0,1.50988]
[1736086712800,0.16424438,97455.0,97454.0,1.50988]
[1736086713229,0.3632307,97455.0,97454.0,0.001]
[1736086713445,5.4202307,97455.0,97454.0,0.01088]
[1736086713780,5.4954307,97455.0,97454.0,0.002]
[1736086713979,5.4364307,97455.0,97454.0,0.01088]
[1736086714606,5.4364307,97455.0,97454.0,0.00988]
[1736086714868,2.7394307,97455.0,97454.0,0.00988]
[1736086715074,2.0614307,97455.0,97454.0,0.001]
[1736086715284,0.5864307,97455.0,97454.0,0.00988]
[1736086715495,0.3632307,97455.0,97454.0,0.00888]
[1736086715671,0.3722307,97455.0,97454.0,0.00988]
[1736086715883,0.3662307,97455.0,97454.0,0.00888]
[1736086716296,0.3722307,97455.0,97454.0,0.00988]
[1736086716489,5.4222307,97455.0,97454.0,0.001]
[1736086716707,0.1,97451.0,97450.0,6.6e-05]
[1736086716912,5.45258632,97451.0,97450.0,1e-06]
[1736086717113,0.43474,97434.0,97433.0,8.54e-05]
[1736086717356,0.43474,97434.0,97433.0,0.00016144]
[1736086717357,5.5909218,97434.0,97433.0,0.00016144]
[1736086718195,5.5909218,97434.0,97433.0,4.4e-07]
[1736086718399,0.6161218,97434.0,97433.0,4.4e-07]
[1736086718915,0.63503417,97434.0,97433.0,4.4e-07]
[1736086719133,0.63803417,97434.0,97433.0,0.00888044]
[1736086719576,0.63803417,97434.0,97433.0,0.00988044]
[1736086719577,0.36784785,97434.0,97433.0,0.00988044]
[1736086719780,0.21784785,97434.0,97433.0,1.50996584]
[1736086719988,0.21784785,97434.0,97433.0,1.61395216]
[1736086720200,0.18993548,97434.0,97433.0,1.61295216]
[1736086720452,0.18993548,97434.0,97433.0,1.50896584]
[1736086721063,0.18693548,97434.0,97433.0,1.50896584]
[1736086721265,0.18993548,97434.0,97433.0,1.50896584]
[1736086721764,0.19593548,97434.0,97433.0,1.50996584]
[1736086721971,0.18693548,97434.0,97433.0,8.584e-05]
[1736086722203,0.19368294,97434.0,97433.0,0.00896584]
[1736086722425,0.55666926,97434.0,97433.0,0.00996584]
[1736086722861,0.55666926,97434.0,97433.0,0.00108584]
[1736086723071,0.54766926,97434.0,97433.0,8.584e-05]
[1736086723294,4.21066926,97434.0,97433.0,0.00896584]
[1736086723499,4.21066926,97434.0,97433.0,0.00108584]
[1736086723500,3.89566926,97434.0,97433.0,0.00108584]
[1736086723817,3.89566926,97434.0,97433.0,0.00996584]
[1736086724431,0.55666926,97434.0,97433.0,0.00996584]
[1736086725715,5.75346926,97434.0,97433.0,8.4e-07]
[1736086725937,0.73068265,97434.0,97433.0,8.4e-07]
[1736086726248,0.70768265,97434.0,97433.0,8.4e-07]
[1736086726470,0.68579208,97434.0,97433.0,8.4e-07]
[1736086726671,0.68579208,97434.0,97413.0,0.00888]
[1736086726672,0.334778,97414.0,97413.0,0.00888]
[1736086726879,0.334778,97414.0,97413.0,0.00892932]
[1736086727175,0.34362289,97414.0,97413.0,0.11291564]
[1736086727413,0.34362289,97414.0,97413.0,0.00892932]
[1736086727843,0.34362289,97414.0,97413.0,1.50892932]
[1736086728048,0.54760921,97414.0,97413.0,1.50892932]
[1736086728696,0.34362289,97414.0,97413.0,1.50892932]
[1736086729609,0.35262289,97414.0,97413.0,1.50892932]
[1736086729807,0.34562289,97414.0,97413.0,1.50892932]
[1736086730155,0.35362289,97414.0,97413.0,1.50892932]
[1736086730626,0.19562289,97414.0,97413.0,1.50892932]
[1736086730835,0.01084489,97414.0,97413.0,1.50892932]
[1736086731083,0.01084489,97414.0,97413.0,1.58732932]
[1736086731273,0.01084489,97414.0,97413.0,1.63328385]
[1736086731274,0.002,97414.0,97413.0,1.63328385]
[1736086731683,0.184746,97431.0,97413.0,1.63328385]
[1736086731858,0.369492,97431.0,97414.0,0.231278]
[1736086732063,0.00217182,97430.0,97416.0,0.184774]
[1736086732282,0.00217182,97430.0,97426.0,1.5]
[1736086732437,0.184739,97435.0,97426.0,1.5]
[1736086732849,0.18473,97439.0,97426.0,1.5]
[1736086733058,0.184741,97434.0,97426.0,1.5]
[1736086733262,0.184741,97434.0,97427.0,0.10398632]
[1736086733478,0.00747494,97438.0,97427.0,0.28873832]
[1736086733683,0.003,97430.0,97429.0,0.184749]
[1736086733884,0.00747494,97438.0,97429.0,0.36713532]
[1736086734084,0.184712,97449.0,97437.0,1.5]
[1736086734290,0.1,97467.0,97437.0,1.5]
[1736086734502,0.184709,97451.0,97437.0,1.684733]
[1736086734713,0.184709,97451.0,97437.0,0.184733]
[1736086734918,0.00749763,97450.0,97437.0,0.184733]
[1736086735117,0.00749763,97450.0,97438.0,0.0369479]
[1736086735361,0.184712,97449.0,97438.0,0.0369479]
[1736086735624,0.369424,97449.0,97438.0,0.0369479]
[1736086736563,0.369424,97449.0,97438.0,0.0379479]
[1736086736701,0.369424,97449.0,97448.0,1.5]
[1736086736899,0.369424,97449.0,97448.0,1.50888]
[1736086737107,0.184712,97449.0,97448.0,1.61286632]
[1736086737303,0.184712,97449.0,97448.0,1.50888]
[1736086737786,0.184712,97449.0,97448.0,1.5]
[1736086737787,0.18997524,97449.0,97448.0,1.5]
[1736086738003,0.18473,97439.0,97418.0,0.0784]
[1736086738185,0.184749,97430.0,97419.0,0.00868]
[1736086738496,0.00743501,97429.0,97420.0,1.5]
[1736086738864,0.184749,97430.0,97421.0,0.00868]
[1736086739238,0.184732,97438.0,97421.0,0.00868]
[1736086739450,0.184732,97438.0,97422.0,0.28874932]
[1736086739645,0.184727,97441.0,97422.0,0.28874932]
[1736086739646,0.184727,97441.0,97422.0,0.10398632]
[1736086739859,0.001,97430.0,97427.0,0.184752]
[1736086740176,0.001,97430.0,97429.0,0.184749]
[1736086740377,0.001,97430.0,97429.0,1.684749]
[1736086741869,0.184719,97446.0,97429.0,1.684749]
[1736086742113,0.184707,97452.0,97438.0,0.184731]
[1736086742339,0.184707,97452.0,97439.0,0.01949925]
[1736086742552,0.18471,97450.0,97439.0,0.01949925]
[1736086742982,0.00225968,97449.0,97439.0,0.01949925]
[1736086743223,0.00225968,97449.0,97440.0,0.263129]
[1736086743435,0.00225757,97448.0,97440.0,0.18238632]
[1736086743656,0.00225757,97448.0,97440.0,0.0784]
[1736086743860,0.184719,97445.0,97441.0,0.00868]
[1736086744078,0.006,97446.0,97442.0,0.0097421]
[1736086744286,0.00751893,97444.0,97442.0,0.0097421]
[1736086744516,0.184715,97447.0,97435.0,0.01034097]
[1736086744732,0.0001708,97455.0,97419.0,0.0784]
[1736086744733,0.00751704,97443.0,97419.0,0.0784]
[1736086744908,0.00102615,97446.0,97430.0,0.00868]
[1736086745143,0.184731,97439.0,97430.0,0.00868]
[1736086745528,0.184734,97437.0,97430.0,0.00868]
[1736086745980,0.00750759,97438.0,97430.0,0.00868]
[1736086746203,0.00223226,97436.0,97430.0,0.00868]
[1736086746419,0.184722,97444.0,97430.0,0.02803214]
[1736086746634,0.184731,97439.0,97430.0,0.00868]
[1736086747045,0.00527111,97438.0,97430.0,0.01068]
[1736086747245,0.00750553,97438.0,97430.0,0.01068]
[1736086747656,0.00750553,97438.0,97437.0,1.5]
[1736086748078,0.1848708,97455.0,97438.0,0.184732]
[1736086748290,0.0001708,97455.0,97442.0,0.184723]
[1736086748538,0.0001708,97455.0,97439.0,0.39270264]
[1736086748539,0.0001708,97455.0,97443.0,0.184723]
[1736086748749,0.0001708,97455.0,97454.0,1.5]
[1736086748952,0.0001708,97455.0,97454.0,1.50868]
[1736086749988,0.0001708,97455.0,97454.0,1.50872932]
[1736086750215,0.0001708,97455.0,97454.0,1.51072932]
[1736086750604,0.0001708,97455.0,97454.0,1.61471564]
[1736086750778,0.0041708,97455.0,97454.0,1.61471564]
[1736086751263,0.00519695,97455.0,97454.0,0.01072932]
[1736086751584,0.0041708,97455.0,97454.0,0.00204932]
[1736086751790,0.00643513,97455.0,97454.0,0.00204932]
[1736086751995,0.0905706,97487.0,97459.0,0.184691]
[1736086752209,0.184659,97477.0,97455.0,0.24826235]
[1736086752416,0.184668,97472.0,97457.0,0.184696]
[1736086752635,0.184674,97469.0,97457.0,0.28868232]
[1736086752843,0.184674,97469.0,97458.0,0.04436877]
[1736086753491,0.184674,97469.0,97459.0,0.001]
[1736086753911,0.184674,97469.0,97458.0,0.04436877]
[1736086754115,0.186674,97469.0,97458.0,0.04436877]
[1736086754321,0.186674,97469.0,97458.0,0.04736877]
[1736086754532,0.184674,97469.0,97459.0,0.04890604]
[1736086754711,0.189674,97469.0,97459.0,0.04890604]
[1736086755328,0.00171511,97468.0,97458.0,0.003]
[1736086755543,0.00171511,97468.0,97459.0,0.184693]
[1736086755764,0.005,97469.0,97460.0,0.18469]
[1736086756191,0.0001708,97471.0,97460.0,0.18469]
[1736086756395,0.00419481,97470.0,97460.0,0.18469]
[1736086756600,0.004,97469.0,97461.0,0.06263817]
[1736086756737,0.004,97469.0,97468.0,1.5]
[1736086756953,0.184672,97470.0,97468.0,1.5]
[1736086757178,0.184672,97470.0,97461.0,0.06263817]
[1736086757372,0.0001708,97471.0,97461.0,0.06263817]
[1736086757373,0.184675,97468.0,97461.0,0.06263817]
[1736086757606,0.184675,97468.0,97467.0,1.5]
[1736086758582,0.001,97469.0,97467.0,1.5]
[1736086758790,0.001,97469.0,97462.0,0.01736384]
[1736086759009,0.001,97469.0,97465.0,0.184681]
[1736086759215,0.001,97469.0,97463.0,0.10398632]
[1736086759418,0.001,97469.0,97466.0,1.5]
[1736086759571,0.184674,97469.0,97468.0,0.002]
[1736086760141,0.369348,97469.0,97466.0,1.5]
[1736086760342,0.00171771,97468.0,97466.0,1.5]
[1736086760541,0.184677,97467.0,97466.0,1.5]
[1736086760912,0.1863926,97467.0,97466.0,1.5]
[1736086761679,0.18741875,97467.0,97466.0,1.50868]
[1736086762051,0.1863926,97467.0,97466.0,1.50868]
[1736086762471,0.54140507,97467.0,97466.0,0.00868]
[1736086762671,0.1847,97455.0,97441.0,0.05748]
[1736086762886,0.3347,97455.0,97454.0,0.00872932]
[1736086763095,0.44039051,97455.0,97454.0,4.932e-05]
[1736086763305,0.54039051,97455.0,97454.0,0.00872932]
[1736086763519,0.62169051,97455.0,97454.0,0.00872932]
[1736086763931,2.74869051,97455.0,97454.0,3.2e-07]
[1736086764143,0.434725,97442.0,97441.0,0.05748]
[1736086764388,0.53871132,97442.0,97441.0,0.06616]
[1736086764629,0.5403881,97442.0,97441.0,0.05748]
[1736086765039,0.5403881,97442.0,97441.0,0.06616]
[1736086765262,0.5403881,97442.0,97441.0,0.05748]
[1736086765477,0.5403881,97442.0,97441.0,0.06616]
[1736086765688,0.33640178,97442.0,97441.0,0.06616]
[1736086766153,0.33640178,97442.0,97441.0,0.05748]
[1736086766330,0.33640178,97442.0,97441.0,0.06616]
[1736086766732,0.33640178,97442.0,97441.0,1.56616]
[1736086766980,0.34540178,97442.0,97441.0,1.56716]
[1736086767445,0.33962465,97442.0,97441.0,1.56616]
[1736086767655,0.35062465,97442.0,97441.0,1.56716]
[1736086768092,0.34162465,97442.0,97441.0,1.56616]
[1736086768295,0.35062465,97442.0,97441.0,1.56716]
[1736086768735,0.34862465,97442.0,97441.0,1.56716]
[1736086769673,0.34862465,97442.0,97441.0,0.06716]
[1736086769895,0.34862465,97442.0,97441.0,0.06692]
[1736086770333,0.34962465,97442.0,97441.0,1.56692]
[1736086770757,0.55361097,97442.0,97441.0,0.06692]
[1736086771145,0.34962465,97442.0,97441.0,1.56692]
[1736086772391,0.55361097,97442.0,97441.0,0.00944]
[1736086775044,0.55361097,97442.0,97441.0,0.001]
[1736086775448,0.55361097,97442.0,97441.0,0.00944]
[1736086777241,0.55361097,97442.0,97441.0,0.001]
[1736086777441,0.55361097,97442.0,97441.0,0.00944]
[1736086777643,0.57661097,97442.0,97441.0,1e-06]
[1736086778057,0.65861097,97442.0,97441.0,1e-06]
[1736086778492,0.65761097,97442.0,97441.0,1e-06]
[1736086778715,0.334748,97430.0,97429.0,8.54e-05]
[1736086778925,0.53873432,97430.0,97429.0,8.54e-05]
[1736086779141,0.54356462,97430.0,97429.0,8.54e-05]
[1736086779987,0.56656462,97430.0,97429.0,4e-07]
[1736086780213,0.57678646,97430.0,97429.0,4e-07]
[1736086780830,0.55378646,97430.0,97429.0,4e-07]
[1736086781030,0.55678646,97430.0,97429.0,4e-07]
[1736086781485,0.65649798,97430.0,97429.0,4e-07]
[1736086781686,0.65349798,97430.0,97429.0,4e-07]
[1736086782104,0.66549798,97430.0,97429.0,4e-07]
[1736086782390,0.64749798,97430.0,97429.0,4e-07]
[1736086782784,0.55678646,97430.0,97429.0,4e-07]
[1736086783413,0.45378646,97430.0,97429.0,4e-07]
[1736086783614,0.55378646,97430.0,97429.0,4e-07]
[1736086783842,0.56578646,97430.0,97429.0,4e-07]
[1736086784070,0.55678646,97430.0,97429.0,4e-07]
[1736086784300,0.55378646,97430.0,97429.0,4e-07]
[1736086784501,0.56578646,97430.0,97429.0,4e-07]
[1736086787938,0.2015783,97430.0,97429.0,4e-07]
[1736086788147,0.20260445,97430.0,97429.0,4e-07]
[1736086788793,0.19360445,97430.0,97429.0,4e-07]
[1736086788997,1.20260445,97430.0,97429.0,4e-07]
[1736086789207,1.3515783,97430.0,97429.0,4e-07]
[1736086789425,1.3425783,97430.0,97429.0,4e-07]
[1736086789637,1.3515783,97430.0,97429.0,4e-07]
[1736086789836,1.3485783,97430.0,97429.0,4e-07]
[1736086790265,1.3515783,97430.0,97429.0,4e-07]
[1736086790490,1.55556462,97430.0,97429.0,4e-07]
[1736086790721,1.36781662,97430.0,97429.0,4e-07]
[1736086790929,1.44311662,97430.0,97429.0,4e-07]
[1736086791133,1.43511662,97430.0,97429.0,4e-07]
[1736086791309,1.44411662,97430.0,97429.0,4e-07]
[1736086791768,1.61886462,97430.0,97429.0,4e-07]
[1736086792197,1.6379601,97430.0,97429.0,4e-07]
[1736086792410,0.273,97428.0,97427.0,4e-07]
[1736086792639,0.37698632,97428.0,97427.0,4e-07]
[1736086792845,0.173,97425.0,97424.0,0.00844]
[1736086793055,0.25501247,97425.0,97413.0,8.54e-05]
[1736086793259,0.25501247,97424.0,97423.0,0.00844]
[1736086793464,0.25398632,97424.0,97423.0,0.00844]
[1736086793859,0.334778,97414.0,97413.0,8.54e-05]
[1736086794057,0.53884055,97414.0,97413.0,0.0085254]
[1736086795418,0.54784055,97414.0,97413.0,0.0085254]
[1736086796036,0.44784055,97414.0,97413.0,0.0085254]
[1736086796242,0.44945797,97414.0,97413.0,0.0085254]
[1736086796689,0.44945797,97414.0,97413.0,1.5085254]
[1736086796898,0.34547165,97414.0,97413.0,1.5085254]
[1736086797303,0.34862957,97414.0,97413.0,1.5085254]
[1736086797731,0.35162957,97414.0,97413.0,1.5085254]
[1736086797955,0.34262957,97414.0,97413.0,1.5085254]
[1736086798174,0.34262957,97414.0,97413.0,4e-07]
[1736086798175,0.54361589,97414.0,97413.0,4e-07]
[1736086798387,0.434789,97408.0,97407.0,8e-07]
[1736086798602,0.25,97407.0,97406.0,0.04742936]
[1736086798815,0.35714678,97407.0,97406.0,0.04742936]
[1736086799252,0.1,97403.0,97402.0,3.6e-07]
[1736086799474,0.35501247,97403.0,97402.0,3.6e-07]
[1736086799681,0.35715723,97403.0,97402.0,3.6e-07]
[1736086799884,0.35865929,97403.0,97402.0,3.6e-07]
[1736086800502,0.15,97402.0,97400.0,3.6e-07]
[1736086800716,0.27801247,97401.0,97400.0,3.6e-07]
[1736086800923,0.27855244,97401.0,97400.0,3.6e-07]
[1736086801854,0.542608,97400.0,97395.0,2e-08]
[1736086802060,0.357814,97395.0,97394.0,4.2e-07]
[1736086802567,0.46335851,97395.0,97394.0,4.2e-07]
[1736086803087,0.56335851,97395.0,97394.0,4.2e-07]
[1736086805339,0.57335851,97395.0,97394.0,4.2e-07]
[1736086806741,0.55035851,97395.0,97394.0,4.2e-07]
[1736086806946,0.45035851,97395.0,97394.0,4.2e-07]
[1736086807159,0.34637219,97395.0,97394.0,4.2e-07]
[1736086807987,0.19637219,97395.0,97394.0,4.2e-07]
[1736086808194,0.40138466,97395.0,97394.0,4.2e-07]
[1736086808406,0.45035851,97395.0,97394.0,4.2e-07]
[1736086809223,0.1,97393.0,97392.0,4.4e-07]
[1736086809434,0.35501247,97393.0,97392.0,4.4e-07]
[1736086809637,0.35398632,97393.0,97392.0,4.4e-07]
[1736086809865,0.35554451,97393.0,97392.0,4.4e-07]
[1736086810284,0.35554451,97393.0,97392.0,0.00828044]
[1736086810837,0.35654451,97393.0,97392.0,0.00828044]
[1736086811051,0.15255819,97393.0,97392.0,0.00828044]
[1736086811256,0.15358434,97393.0,97392.0,4.4e-07]
[1736086811432,0.16158434,97393.0,97392.0,0.00828044]
[1736086812090,0.16158434,97393.0,97392.0,4.4e-07]
[1736086812296,0.16469842,97393.0,97392.0,0.00828044]
[1736086813070,0.16469842,97393.0,97392.0,1.50828044]
[1736086813259,0.16367227,97393.0,97392.0,1.50828044]
[1736086814441,0.01367227,97393.0,97392.0,1.58090044]
[1736086814643,0.01367227,97393.0,97392.0,1.58918044]
[1736086815717,0.00567227,97393.0,97392.0,1.58918044]
[1736086816120,0.009,97393.0,97392.0,1.58918044]
[1736086816251,0.09071152,97412.0,97392.0,1.58918044]
[1736086816455,0.184803,97401.0,97393.0,0.10398632]
[1736086817304,0.1849738,97401.0,97393.0,0.10398632]
[1736086817962,0.184806,97399.0,97393.0,0.10398632]
[1736086818192,0.00466577,97400.0,97394.0,0.10398632]
[1736086818407,0.0001708,97401.0,97394.0,0.19029115]
[1736086818833,0.0001708,97401.0,97392.0,1.58926584]
[1736086819251,0.369628,97395.0,97392.0,0.08926584]
[1736086819489,0.00468776,97394.0,97392.0,0.08926584]
[1736086819699,0.004,97393.0,97392.0,0.08926584]
[1736086820154,0.00468587,97393.0,97392.0,1.58926584]
[1736086820424,0.00468587,97393.0,97392.0,1.69525216]
[1736086820635,0.00468587,97393.0,97392.0,1.58429384]
[1736086820852,0.00468587,97393.0,97392.0,1.58229384]
[1736086821063,0.00468587,97393.0,97392.0,0.08429384]
[1736086821276,0.00468587,97393.0,97392.0,0.07601384]
[1736086821475,0.00468587,97393.0,97392.0,1.58429384]
[1736086822095,0.00468587,97393.0,97392.0,1.57601384]
[1736086822326,0.00468587,97393.0,97392.0,0.0103654]
[1736086822549,0.15771202,97393.0,97392.0,0.0083654]
[1736086822957,0.15571202,97393.0,97392.0,0.0093654]
[1736086823160,0.15571202,97393.0,97392.0,0.0103654]
[1736086823374,0.15571202,97393.0,97392.0,0.0093654]
[1736086823790,0.16171202,97393.0,97392.0,0.0093654]
[1736086824830,0.16171202,97393.0,97392.0,0.0010854]
[1736086825041,0.16171202,97393.0,97392.0,0.0093654]
[1736086825878,0.16171202,97393.0,97392.0,0.0083654]
[1736086826078,0.15571202,97393.0,97392.0,0.0083654]
[1736086826282,0.15571202,97393.0,97392.0,0.0103654]
[1736086826704,0.15571202,97393.0,97392.0,0.0083654]
[1736086827095,0.16171202,97393.0,97392.0,0.0083654]
[1736086827300,0.16171202,97393.0,97392.0,1.5083654]
[1736086827507,0.16068587,97393.0,97392.0,1.5083654]
[1736086827981,0.16068587,97393.0,97392.0,8.54e-05]
[1736086828213,0.26569834,97393.0,97392.0,0.0083254]
[1736086828394,0.26467219,97393.0,97392.0,0.0083254]
[1736086829238,0.16068587,97393.0,97392.0,0.0083254]
[1736086829438,0.16171202,97393.0,97392.0,0.0083254]
[1736086829614,0.15702615,97393.0,97392.0,0.0083254]
[1736086829819,0.006,97393.0,97392.0,0.0872254]
[1736086830232,0.006,97393.0,97392.0,1.5872254]
[1736086832041,0.01221508,97393.0,97392.0,1.5872254]
[1736086833435,0.01221508,97393.0,97392.0,8.54e-05]
[1736086833650,0.01324123,97393.0,97392.0,0.0083254]
[1736086833853,0.01221508,97393.0,97392.0,0.0083254]
[1736086834135,0.01221508,97393.0,97392.0,1.5083254]
[1736086837155,0.01221508,97393.0,97392.0,0.0083254]
[1736086837567,0.01221508,97393.0,97392.0,1.5083254]
[1736086838636,0.01221508,97393.0,97392.0,1.61231172]
[1736086840223,0.01221508,97393.0,97392.0,1.5083254]
[1736086840423,0.01065146,97393.0,97392.0,1.5872254]
[1736086840626,0.09071152,97406.0,97392.0,1.73861172]
[1736086840839,0.09071152,97406.0,97400.0,0.263704]
[1736086841093,0.09071152,97410.0,97400.0,0.36769032]
[1736086841325,0.09071152,97410.0,97400.0,1.93294015]
[1736086841528,0.09071152,97410.0,97400.0,2.05594015]
[1736086841728,0.06271231,97410.0,97408.0,0.1]
[1736086841974,0.13606728,97412.0,97410.0,0.0789]
[1736086842170,7.623e-05,97414.0,97411.0,0.28877032]
[1736086842350,7.623e-05,97414.0,97413.0,1.5]
[1736086842546,7.623e-05,97414.0,97413.0,1.60398632]
[1736086843770,7.623e-05,97414.0,97413.0,1.79176632]
[1736086844327,7.623e-05,97414.0,97413.0,1.78876632]
[1736086844511,7.623e-05,97414.0,97413.0,1.96766632]
[1736086844751,0.00107623,97414.0,97413.0,2.12705264]
[1736086844959,0.02101386,97415.0,97414.0,0.123]
[1736086845179,0.02106477,97415.0,97414.0,0.36340632]
[1736086845387,0.184728,97441.0,97422.0,0.184762]
[1736086845388,0.184736,97436.0,97422.0,0.184762]
[1736086845589,1.00022172,97430.0,97429.0,1.5]
[1736086845793,1.00022172,97430.0,97429.0,1.70797264]
[1736086846216,0.76367813,97430.0,97429.0,1.97162164]
[1736086846421,0.76367813,97430.0,97429.0,2.01902164]
[1736086846627,0.76367813,97430.0,97429.0,2.14202164]
[1736086846830,0.75426782,97430.0,97429.0,2.14202164]
[1736086847043,0.75426782,97430.0,97429.0,2.15217152]
[1736086847709,0.64935421,97430.0,97429.0,2.17535885]
[1736086847910,0.62512458,97430.0,97429.0,2.17535885]
[1736086848743,0.23651651,97430.0,97429.0,2.32535885]
[1736086848948,0.0001708,97454.0,97453.0,0.204704]
[1736086849166,0.0001708,97454.0,97453.0,0.4449897]
[1736086849381,0.0001708,97454.0,97453.0,0.3449897]
[1736086849653,0.0001708,97454.0,97453.0,1.8449897]
[1736086850505,0.0011708,97454.0,97453.0,1.6610457]
[1736086850718,0.0001708,97454.0,97453.0,1.6285857]
[1736086851149,0.0011708,97454.0,97453.0,1.8222897]
[1736086851584,0.0011708,97454.0,97453.0,2.0041897]
[1736086852240,0.0011708,97454.0,97453.0,2.0011897]
[1736086852672,0.0021708,97454.0,97453.0,2.0091897]
[1736086853107,0.0021708,97454.0,97453.0,0.1425857]
[1736086853315,0.0021708,97454.0,97453.0,0.017]
[1736086853493,0.0021708,97454.0,97453.0,0.02524]
[1736086853705,0.00387289,97454.0,97453.0,0.02524]
[1736086853934,0.00387289,97454.0,97453.0,0.017]
[1736086854143,0.00387289,97454.0,97453.0,0.02524]
[1736086854572,0.00287289,97454.0,97453.0,0.12022632]
[1736086854796,0.00287289,97454.0,97453.0,0.13224895]
[1736086855001,0.0011708,97454.0,97453.0,0.20590895]
[1736086855215,0.0011708,97454.0,97453.0,1.63224895]
[1736086855424,0.00955663,97454.0,97453.0,1.51624]
[1736086855627,0.0011708,97454.0,97453.0,1.51624]
[1736086855836,0.00859495,97454.0,97453.0,1.50824]
[1736086856083,0.0001708,97454.0,97453.0,1.50824]